bitfinex/quotes_SOLUSD_20220103
["timestamp","ask_amount","ask_price","bid_price","bid_amount"]
[1641201930385,29.71655995,172.87,172.8,15.0399]
[1641201930783,28.10618826,172.87,172.8,15.0399]
[1641201931584,29.71655995,172.87,172.8,15.2999]
[1641201932487,38.39595995,172.87,172.8,15.2999]
[1641201933685,29.71655995,172.87,172.8,15.2999]
[1641201934686,28.10618826,172.87,172.8,15.2999]
[1641201934887,36.78568826,172.87,172.8,15.2999]
[1641201935488,38.39605995,172.87,172.8,15.2999]
[1641201935989,38.39605995,172.87,172.8,15.0399]
[1641201936190,38.39605995,172.87,172.8,6.36]
[1641201936390,46.75605995,172.87,172.8,6.36]
[1641201936594,38.65605995,172.87,172.8,6.36]
[1641201937498,39.15605995,172.87,172.8,6.62]
[1641201937696,1.61037169,172.86,172.8,6.62]
[1641201937993,8.681,172.84,172.8,6.62]
[1641201939096,8.681,172.84,172.8,6.36]
[1641201940997,8.681,172.84,172.8,6.62]
[1641201941794,11.62587169,172.85,172.8,6.62]
[1641201942197,10.0155,172.85,172.8,6.62]
[1641201946001,1.61037169,172.86,172.8,6.62]
[1641201946399,29.71655995,172.87,172.8,6.62]
[1641201947401,29.71655995,172.87,172.8,15.2999]
[1641201947802,28.10618826,172.87,172.8,15.2999]
[1641201952311,28.10618826,172.87,172.8,15.0399]
[1641201952510,28.36618826,172.87,172.8,6.36]
[1641201952711,8.1,172.86,172.8,6.36]
[1641201953238,9.71037169,172.86,172.8,6.36]
[1641201953612,9.71037169,172.86,172.8,6.62]
[1641201953812,1.61037169,172.85,172.8,6.62]
[1641201954413,10.29117169,172.85,172.8,6.62]
[1641201954913,8.6808,172.85,172.8,6.62]
[1641201955616,10.29117169,172.85,172.8,6.62]
[1641201957419,8.6808,172.85,172.8,6.62]
[1641201961721,8.6808,172.85,172.8,9.50266187]
[1641201963322,8.6808,172.85,172.8,6.62]
[1641201968927,11.58427169,172.86,172.8,15.2999]
[1641201969126,1.61037169,172.86,172.8,15.2999]
[1641201969926,28.10618826,172.87,172.8,15.2999]
[1641201972228,29.71655995,172.87,172.8,15.2999]
[1641201973430,38.39595995,172.87,172.8,15.2999]
[1641201976060,1.61037169,172.86,172.8,15.2999]
[1641201976460,10.29057169,172.86,172.8,15.2999]
[1641201977661,11.61217169,172.86,172.8,15.2999]
[1641201979664,2.93197169,172.86,172.8,15.2999]
[1641201982266,1.61037169,172.86,172.8,15.2999]
[1641201983568,29.71655995,172.87,172.8,15.2999]
[1641201984169,38.39595995,172.87,172.8,15.2999]
[1641201985175,29.71655995,172.87,172.8,15.2999]
[1641201985777,28.10618826,172.87,172.8,15.2999]
[1641201986375,36.78558826,172.87,172.8,15.2999]
[1641201991984,38.39595995,172.87,172.8,15.2999]
[1641201993583,1.61037169,172.86,172.8,15.2999]
[1641201994684,38.39595995,172.87,172.8,15.2999]
[1641201997288,1.61037169,172.86,172.8,15.2999]
[1641201997686,38.39595995,172.87,172.8,15.2999]
[1641202003493,1.61037169,172.87,172.8,15.2999]
[1641202003694,1.61037169,172.87,172.81,1.42669368]
[1641202003891,1.61037169,172.88,172.84,8.6771]
[1641202004093,1.61037169,172.88,172.84,0.26]
[1641202004593,26.10406443,172.88,172.84,0.26]
[1641202004795,26.10406443,172.88,172.8,14.72]
[1641202006296,26.10406443,172.88,172.84,8.6778]
[1641202006499,26.10406443,172.88,172.84,8.9378]
[1641202042999,26.10406443,172.88,172.81,1.2398]
[1641202043204,26.10406443,172.88,172.8,6.36]
[1641202044399,1.61037169,172.86,172.8,15.0398]
[1641202045099,1.61037169,172.86,172.8,15.2998]
[1641202046602,9.913,172.87,172.8,15.2998]
[1641202052906,9.913,172.87,172.8,6.36]
[1641202053106,18.273,172.87,172.8,6.36]
[1641202054539,18.773,172.87,172.8,6.36]
[1641202054740,18.273,172.87,172.8,6.36]
[1641202055142,18.773,172.87,172.8,6.36]
[1641202055742,9.913,172.87,172.8,6.36]
[1641202055947,1.2332,172.87,172.8,6.62]
[1641202057342,1.2332,172.87,172.8,15.2995]
[1641202058545,1.2332,172.87,172.8,16.72619368]
[1641202062246,1.2332,172.87,172.8,15.2995]
[1641202071056,1.2332,172.87,172.8,16.72619368]
[1641202071858,1.2332,172.87,172.8,15.2995]
[1641202077063,18.2726,172.87,172.8,6.62]
[1641202077463,20.38297169,172.87,172.8,6.62]
[1641202078065,1.61037169,172.86,172.8,6.62]
[1641202078464,8.6809,172.84,172.8,6.62]
[1641202079766,8.6809,172.84,172.8,6.36]
[1641202081071,8.6809,172.84,172.8,6.62]
[1641202088177,8.6809,172.84,172.8,6.36]
[1641202088409,16.7809,172.84,172.8,6.36]
[1641202088611,17.5409,172.84,172.8,6.36]
[1641202090806,1.61037169,172.83,172.8,6.36]
[1641202091103,22.84819994,172.82,172.8,6.36]
[1641202091305,60.86313123,172.81,172.8,6.36]
[1641202091603,69.22313123,172.81,172.8,6.36]
[1641202091808,69.72313123,172.81,172.8,6.36]
[1641202092406,78.40693123,172.81,172.8,6.36]
[1641202094106,77.90693123,172.81,172.8,6.36]
[1641202094707,79.52188325,172.81,172.8,6.36]
[1641202095307,80.02188325,172.81,172.8,6.36]
[1641202096814,78.40693123,172.81,172.8,6.36]
[1641202097612,80.02143083,172.81,172.8,6.36]
[1641202098012,71.92143083,172.81,172.8,6.36]
[1641202099420,80.02143083,172.81,172.8,6.36]
[1641202103721,80.02143083,172.81,172.72,1.2794]
[1641202103722,8.6849,172.77,172.72,1.2794]
[1641202103923,8.1,172.79,172.64,109.9838]
[1641202104124,0.26,172.77,172.65,1.2262]
[1641202104623,8.36,172.77,172.65,1.2262]
[1641202104823,8.1,172.77,172.66,2.24704992]
[1641202105024,8.36,172.77,172.66,2.24704992]
[1641202105423,8.1,172.77,172.66,2.24704992]
[1641202105624,8.36,172.77,172.66,2.24704992]
[1641202106027,8.36,172.77,172.66,2.50704992]
[1641202106427,8.6859,172.75,172.68,8.6852]
[1641202106629,25.59276523,172.74,172.68,8.6852]
[1641202106827,25.59276523,172.74,172.68,8.9452]
[1641202108448,25.59276523,172.74,172.69,2.71630948]
[1641202108848,25.59276523,172.74,172.69,2.97630948]
[1641202109049,1.6144996,172.79,172.69,2.97630948]
[1641202109249,4.1444996,172.8,172.69,2.97630948]
[1641202110049,8.6841,172.78,172.71,8.6841]
[1641202110250,8.6841,172.78,172.72,2.89653025]
[1641202110451,8.6841,172.78,172.71,8.9441]
[1641202110651,8.6841,172.78,172.72,0.26]
[1641202110852,8.6841,172.78,172.67,1.3395]
[1641202111052,8.9441,172.78,172.67,1.3395]
[1641202111452,8.9441,172.78,172.68,2.40434714]
[1641202111653,10.2116,172.78,172.68,2.40434714]
[1641202112154,9.9516,172.78,172.68,2.66434714]
[1641202112351,9.9516,172.78,172.69,8.6847]
[1641202112553,9.9516,172.78,172.69,8.9447]
[1641202112752,10.4516,172.78,172.69,8.9447]
[1641202112954,9.9516,172.78,172.69,8.9447]
[1641202118262,9.9516,172.78,172.69,0.26]
[1641202118263,18.0516,172.78,172.69,0.26]
[1641202118561,18.8116,172.78,172.68,2.66434714]
[1641202118962,20.4260996,172.78,172.68,2.66434714]
[1641202123767,20.1660996,172.78,172.68,0.26]
[1641202123970,20.1660996,172.78,172.67,10.2853]
[1641202124775,20.1660996,172.78,172.68,2.80456526]
[1641202124974,20.4260996,172.78,172.68,3.06456526]
[1641202125871,20.4260996,172.78,172.68,11.75016526]
[1641202134480,19.6660996,172.78,172.68,11.75016526]
[1641202134681,11.5660996,172.78,172.68,11.75016526]
[1641202135085,8.6841,172.78,172.68,17.87616526]
[1641202135281,26.55698473,172.79,172.68,17.87616526]
[1641202135483,35.24048473,172.79,172.68,17.87616526]
[1641202135881,33.62598513,172.79,172.68,17.87616526]
[1641202136082,33.62598513,172.79,172.69,8.1]
[1641202136283,33.62598513,172.79,172.72,8.6833]
[1641202136482,33.62598513,172.79,172.73,2.63295449]
[1641202136884,33.62598513,172.79,172.73,2.89295449]
[1641202137688,24.94248513,172.79,172.73,11.57615449]
[1641202140096,24.94248513,172.79,172.73,8.9432]
[1641202140811,24.94248513,172.79,172.73,0.26]
[1641202141017,24.94248513,172.79,172.72,8.9436]
[1641202141413,24.94248513,172.79,172.72,8.6836]
[1641202141612,33.62608513,172.79,172.7,4.31795049]
[1641202141814,33.88608513,172.79,172.7,1.275]
[1641202142919,33.88608513,172.79,172.7,1.535]
[1641202143315,33.88608513,172.79,172.71,8.6841]
[1641202143514,33.88608513,172.79,172.71,8.9441]
[1641202144319,33.88608513,172.79,172.71,0.26]
[1641202144516,33.88608513,172.79,172.7,1.535]
[1641202145420,33.88608513,172.79,172.7,10.2195]
[1641202145623,34.38608513,172.79,172.7,10.2195]
[1641202146418,1.3078,172.78,172.7,10.2195]
[1641202146619,8.6846,172.77,172.7,10.2195]
[1641202147923,8.6841,172.78,172.7,10.2195]
[1641202148322,8.9441,172.78,172.7,10.2195]
[1641202148522,8.6841,172.78,172.7,10.2195]
[1641202148822,8.9441,172.78,172.7,10.2195]
[1641202149423,8.6841,172.78,172.7,10.2195]
[1641202149623,8.9441,172.78,172.7,10.2195]
[1641202152128,8.6841,172.78,172.7,10.2195]
[1641202152329,8.9441,172.78,172.7,10.2195]
[1641202155431,8.6841,172.78,172.7,10.2195]
[1641202155635,8.9441,172.78,172.7,10.2195]
[1641202155833,8.6841,172.78,172.7,10.2195]
[1641202156130,8.9441,172.78,172.7,10.2195]
[1641202156532,8.6841,172.78,172.7,10.2195]
[1641202156731,24.94248513,172.79,172.7,10.2195]
[1641202161034,25.44248513,172.79,172.7,10.2195]
[1641202162234,26.73938513,172.79,172.7,10.2195]
[1641202162635,26.73938513,172.79,172.7,9.9595]
[1641202162835,35.42308513,172.79,172.7,9.9595]
[1641202163835,34.92308513,172.79,172.7,9.9595]
[1641202164035,34.92308513,172.79,172.7,10.2195]
[1641202165937,34.92308513,172.79,172.7,9.9595]
[1641202166138,35.18308513,172.79,172.7,9.9595]
[1641202166736,34.92308513,172.79,172.7,9.9595]
[1641202167136,34.92308513,172.79,172.7,10.2195]
[1641202168741,34.92308513,172.79,172.7,15.5145]
[1641202168938,26.23938513,172.79,172.7,15.5145]
[1641202170839,26.23938513,172.79,172.71,8.1]
[1641202171040,26.23938513,172.79,172.74,8.6823]
[1641202171241,26.23938513,172.79,172.72,3.05565317]
[1641202171445,26.23938513,172.79,172.72,3.31565317]
[1641202172444,26.23938513,172.79,172.75,8.6821]
[1641202172845,26.23938513,172.79,172.75,8.9421]
[1641202173448,26.23938513,172.79,172.75,0.26]
[1641202173852,26.23938513,172.79,172.74,8.9425]
[1641202184890,26.23938513,172.79,172.74,0.26]
[1641202185093,26.23938513,172.79,172.72,0.26]
[1641202185490,26.23938513,172.79,172.67,37.3049]
[1641202185691,26.23938513,172.79,172.68,1.2954]
[1641202185889,26.23938513,172.79,172.69,2.38501051]
[1641202186089,34.92288513,172.79,172.71,8.6838]
[1641202186489,34.92288513,172.79,172.71,8.9438]
[1641202187893,34.92288513,172.79,172.72,2.4478988]
[1641202188093,34.92288513,172.79,172.72,11.3914988]
[1641202188493,26.23938513,172.79,172.72,11.3914988]
[1641202191095,24.94248513,172.79,172.72,11.3914988]
[1641202195000,24.94248513,172.79,172.72,11.1314988]
[1641202196504,24.94248513,172.79,172.72,11.3914988]
[1641202199406,82.4881996,172.82,172.72,11.3914988]
[1641202199610,73.8061996,172.82,172.73,8.1]
[1641202199807,73.8061996,172.82,172.73,14.934]
[1641202200104,72.1917,172.82,172.77,8.6804]
[1641202200504,72.1917,172.82,172.77,8.9404]
[1641202204808,72.1917,172.82,172.77,8.6804]
[1641202205008,72.1917,172.82,172.76,8.6818]
[1641202205211,80.8737,172.82,172.72,29.1979]
[1641202205409,1.2464,172.81,172.72,0.26]
[1641202205810,1.2464,172.81,172.71,4.10704001]
[1641202206314,9.929,172.81,172.74,8.6825]
[1641202207513,9.929,172.81,172.74,11.48993193]
[1641202209216,1.2464,172.81,172.74,11.48993193]
[1641202217746,1.2464,172.81,172.74,11.22993193]
[1641202218748,1.2464,172.81,172.73,8.6832]
[1641202218947,1.7464,172.81,172.7,2.53]
[1641202219148,2.0064,172.81,172.7,2.53]
[1641202219747,3.6208996,172.81,172.71,2.27678437]
[1641202219948,8.1,172.8,172.7,2.53]
[1641202220151,9.52669368,172.8,172.7,2.53]
[1641202220351,10.28669368,172.8,172.7,2.53]
[1641202220549,1.42669368,172.79,172.7,2.53]
[1641202220751,8.1,172.78,172.7,2.53]
[1641202220955,8.6882,172.73,172.7,2.53]
[1641202221151,6.06439994,172.72,172.7,2.53]
[1641202221351,6.56439994,172.72,172.7,2.53]
[1641202221956,6.06439994,172.72,172.7,2.53]
[1641202222353,67.6882,172.71,172.7,0.0001]
[1641202222553,61.0,172.7,172.63,8.6882]
[1641202223556,61.0,172.7,172.63,8.9482]
[1641202224360,69.6885,172.7,172.63,8.9482]
[1641202224559,69.6885,172.7,172.63,0.26]
[1641202224758,69.6885,172.7,172.62,8.6887]
[1641202226160,69.6885,172.7,172.62,8.9487]
[1641202233968,70.1885,172.7,172.62,8.9487]
[1641202234167,70.1885,172.7,172.62,0.26]
[1641202234368,70.1885,172.7,172.61,11.65917786]
[1641202234769,69.6885,172.7,172.61,11.65917786]
[1641202235972,70.1885,172.7,172.61,8.9492]
[1641202238571,78.2885,172.7,172.61,8.9492]
[1641202238774,79.6106,172.7,172.61,8.9492]
[1641202239574,79.6106,172.7,172.62,2.71772815]
[1641202239977,79.6106,172.7,172.62,2.97772815]
[1641202240779,79.1106,172.7,172.62,11.66642815]
[1641202249316,71.0106,172.7,172.62,11.66642815]
[1641202251820,1.3221,172.7,172.62,11.66642815]
[1641202252220,1.6144996,172.72,172.62,19.76642815]
[1641202252820,1.6144996,172.74,172.62,19.76642815]
[1641202254422,35.106827,172.75,172.62,20.99522815]
[1641202255021,33.4923274,172.75,172.62,20.99522815]
[1641202257721,24.8068274,172.75,172.62,20.99522815]
[1641202261327,24.8068274,172.75,172.62,22.42192183]
[1641202268356,24.8068274,172.75,172.62,30.99092183]
[1641202268933,24.8068274,172.75,172.62,39.69047582]
[1641202269131,24.8068274,172.75,172.62,140.92047582]
[1641202269531,24.8068274,172.75,172.62,149.45956228]
[1641202272537,24.8068274,172.75,172.62,154.3937522]
[1641202275342,24.8068274,172.75,172.63,8.21588767]
[1641202275543,24.8068274,172.75,172.7,2.49631131]
[1641202275943,24.8068274,172.75,172.7,2.75631131]
[1641202276344,24.8068274,172.75,172.7,2.49631131]
[1641202276546,24.8068274,172.75,172.72,8.6824]
[1641202277645,3.03219997,172.74,172.72,8.6824]
[1641202278347,6.06439994,172.74,172.72,8.6824]
[1641202278547,6.06439994,172.74,172.72,8.9424]
[1641202279150,24.8068274,172.75,172.72,8.9424]
[1641202279851,1.2691,172.79,172.72,8.9424]
[1641202286081,2.8835996,172.79,172.72,8.9424]
[1641202287381,11.5671996,172.79,172.72,8.9424]
[1641202289385,9.9527,172.79,172.72,8.9424]
[1641202290788,1.2691,172.79,172.72,8.9424]
[1641202294088,1.2691,172.79,172.72,17.0424]
[1641202294289,27.47277109,172.8,172.72,17.0424]
[1641202294893,25.85827149,172.8,172.72,17.0424]
[1641202300099,76.5814,172.82,172.72,17.0424]
[1641202301098,30.10976367,172.81,172.72,17.0424]
[1641202301499,30.10976367,172.81,172.72,16.7824]
[1641202302732,1.248,172.8,172.72,16.7824]
[1641202304029,1.248,172.8,172.72,17.0424]
[1641202309637,1.248,172.8,172.72,16.7824]
[1641202310440,1.248,172.8,172.72,8.6824]
[1641202311036,1.248,172.8,172.72,8.9424]
[1641202311938,9.9309,172.8,172.72,8.9424]
[1641202312737,9.9309,172.8,172.72,8.6824]
[1641202313238,10.1909,172.8,172.72,8.6824]
[1641202313638,11.8053996,172.8,172.72,8.6824]
[1641202314338,11.8053996,172.8,172.72,8.9424]
[1641202314537,11.5453996,172.8,172.72,8.6824]
[1641202314738,12.0453996,172.8,172.71,8.6843]
[1641202314941,1.6144996,172.79,172.71,8.6843]
[1641202315139,8.6845,172.77,172.71,8.6843]
[1641202315338,8.6845,172.77,172.7,2.49631131]
[1641202316440,8.6845,172.77,172.7,11.18121131]
[1641202316639,8.6845,172.77,172.7,11.44121131]
[1641202319641,8.6845,172.77,172.7,8.9449]
[1641202320744,9.9919,172.78,172.7,8.9449]
[1641202321148,1.3079,172.78,172.7,8.9449]
[1641202324245,9.9918,172.78,172.7,8.9449]
[1641202335072,10.4918,172.78,172.7,8.9449]
[1641202335271,12.1062996,172.78,172.7,8.9449]
[1641202335671,1.6144996,172.77,172.7,8.6849]
[1641202335883,1.6144996,172.77,172.66,28.9492]
[1641202335884,8.6854,172.75,172.69,8.6854]
[1641202336085,23.14769783,172.74,172.69,8.6854]
[1641202336485,23.14769783,172.74,172.67,2.6717015]
[1641202336685,24.42989783,172.74,172.67,2.6717015]
[1641202337490,33.11589783,172.74,172.68,8.686]
[1641202338091,33.11589783,172.74,172.68,8.946]
[1641202339392,33.11589783,172.74,172.68,0.26]
[1641202339692,33.11589783,172.74,172.67,8.9464]
[1641202342696,33.11589783,172.74,172.67,8.6864]
[1641202342897,33.87589783,172.74,172.65,11.67246458]
[1641202344099,33.11589783,172.74,172.65,11.93246458]
[1641202346704,33.61589783,172.74,172.65,11.93246458]
[1641202347906,33.11589783,172.74,172.65,11.93246458]
[1641202349611,33.11589783,172.74,172.65,11.67246458]
[1641202349813,33.37589783,172.74,172.65,11.67246458]
[1641202350012,33.87589783,172.74,172.65,11.67246458]
[1641202350812,33.87589783,172.74,172.65,2.98536458]
[1641202351015,33.87589783,172.74,172.65,3.24536458]
[1641202351617,33.87589783,172.74,172.65,0.26]
[1641202352112,33.87589783,172.74,172.64,8.9479]
[1641202355532,33.87589783,172.74,172.64,8.6879]
[1641202355733,8.1,172.73,172.63,8.6884]
[1641202355936,8.6887,172.69,172.63,8.6884]
[1641202356940,8.6887,172.69,172.63,8.9484]
[1641202358736,8.6887,172.69,172.63,0.26]
[1641202359235,8.6887,172.69,172.62,8.9489]
[1641202359638,8.6887,172.69,172.62,11.31013261]
[1641202360536,8.6887,172.69,172.62,10.81013261]
[1641202363839,9.1887,172.69,172.62,8.4489]
[1641202364038,8.6887,172.69,172.62,8.4489]
[1641202365943,8.6887,172.69,172.6,1.2879]
[1641202366143,9.4487,172.69,172.6,8.6895]
[1641202366342,9.4487,172.69,172.56,9.4051]
[1641202366541,1.2655,172.68,172.57,1.2229]
[1641202366741,27.25910049,172.67,172.57,1.2229]
[1641202366940,27.75910049,172.67,172.58,2.94316906]
[1641202367343,27.75910049,172.67,172.58,3.20316906]
[1641202367542,27.75910049,172.67,172.58,2.94316906]
[1641202367742,1.2403,172.66,172.58,2.94316906]
[1641202368341,8.6906,172.65,172.58,11.63396906]
[1641202368840,8.6906,172.65,172.58,8.6908]
[1641202369040,9.1906,172.65,172.58,8.6908]
[1641202370046,9.1906,172.65,172.58,8.9508]
[1641202370748,9.1906,172.65,172.58,0.26]
[1641202371148,9.1906,172.65,172.57,10.1742]
[1641202371548,1.3213,172.64,172.57,10.1742]
[1641202371951,10.0126,172.64,172.53,37.0705]
[1641202372151,10.7726,172.64,172.54,1.2898]
[1641202373053,10.7726,172.64,172.54,3.80794922]
[1641202373354,10.7726,172.64,172.54,12.50024922]
[1641202376856,10.5126,172.64,172.54,12.50024922]
[1641202377756,10.0126,172.64,172.54,12.50024922]
[1641202379257,10.0126,172.64,172.54,12.24024922]
[1641202380661,10.0126,172.64,172.54,12.50024922]
[1641202380897,10.5126,172.64,172.54,12.50024922]
[1641202381564,10.5126,172.64,172.54,12.24024922]
[1641202381762,18.8726,172.64,172.5,1.2668]
[1641202381963,18.8726,172.64,172.49,1.261]
[1641202382361,20.29929368,172.64,172.49,1.261]
[1641202382563,1.6144996,172.62,172.48,1.8850532]
[1641202382762,8.6964,172.55,172.48,1.8850532]
[1641202382966,8.6964,172.55,172.48,4.54834176]
[1641202383163,8.6964,172.55,172.48,1.8850532]
[1641202383966,17.2964,172.55,172.48,1.8850532]
[1641202384165,17.5564,172.55,172.48,1.8850532]
[1641202384367,18.98309368,172.55,172.48,1.8850532]
[1641202385366,20.59759328,172.55,172.48,1.8850532]
[1641202386267,18.98309368,172.55,172.48,1.8850532]
[1641202390477,17.5564,172.55,172.48,1.8850532]
[1641202390779,18.98309368,172.55,172.48,1.8850532]
[1641202391178,17.5564,172.55,172.48,1.8850532]
[1641202393880,17.2964,172.55,172.48,1.8850532]
[1641202394086,16.7964,172.55,172.48,1.8850532]
[1641202394582,16.7964,172.55,172.48,2.1450532]
[1641202394782,8.6964,172.55,172.48,2.1450532]
[1641202395183,8.6964,172.55,172.48,10.8408532]
[1641202395900,8.6951,172.56,172.49,2.78007915]
[1641202396107,8.6951,172.56,172.49,3.04007915]
[1641202396303,152.7246,172.57,172.49,11.73517915]
[1641202397200,161.4191,172.57,172.49,11.73517915]
[1641202398805,161.4191,172.57,172.49,8.9551]
[1641202399903,161.4191,172.57,172.49,11.33085622]
[1641202403713,83.5322,172.57,172.49,11.33085622]
[1641202403912,8.6936,172.59,172.49,11.33085622]
[1641202404110,29.2712161,172.6,172.5,1.42669368]
[1641202404311,29.2712161,172.6,172.55,8.6923]
[1641202404611,29.2712161,172.6,172.55,11.64756986]
[1641202406614,29.2712161,172.6,172.55,11.38756986]
[1641202407914,29.2712161,172.6,172.55,11.64756986]
[1641202410119,29.2712161,172.6,172.55,8.9523]
[1641202411325,29.2712161,172.6,172.55,11.64667584]
[1641202413719,29.2712161,172.6,172.55,8.9523]
[1641202414720,29.2712161,172.6,172.55,11.55141587]
[1641202416720,29.2712161,172.6,172.55,8.9523]
[1641202418320,29.2712161,172.6,172.55,8.6923]
[1641202419923,29.2712161,172.6,172.55,8.9523]
[1641202422225,1.2681,172.65,172.55,8.9523]
[1641202422425,16.7907,172.66,172.55,8.9523]
[1641202422426,8.6907,172.66,172.55,8.9523]
[1641202422624,158.073,172.67,172.55,8.9523]
[1641202423225,24.43380483,172.66,172.55,8.9523]
[1641202425029,24.43380483,172.66,172.55,10.37899368]
[1641202425229,24.43380483,172.66,172.56,8.1]
[1641202425431,24.43380483,172.66,172.61,8.6881]
[1641202425632,24.43380483,172.66,172.61,11.61260317]
[1641202425829,24.43380483,172.66,172.61,8.9481]
[1641202426428,9.959,172.7,172.61,8.9481]
[1641202426631,74.2866,172.71,172.61,8.9481]
[1641202426831,74.2866,172.71,172.61,11.22531144]
[1641202427431,22.48127205,172.7,172.61,11.22531144]
[1641202428029,22.48127205,172.7,172.62,8.1]
[1641202428229,22.48127205,172.7,172.66,8.6858]
[1641202428631,22.48127205,172.7,172.66,8.9458]
[1641202430655,22.48127205,172.7,172.67,2.56797568]
[1641202430856,22.48127205,172.7,172.68,8.6854]
[1641202431058,22.48127205,172.7,172.68,8.9454]
[1641202432259,28.54567199,172.7,172.68,8.9454]
[1641202432856,25.51347202,172.7,172.68,8.9454]
[1641202433056,22.48127205,172.7,172.68,8.9454]
[1641202433256,1.6144996,172.76,172.68,8.9454]
[1641202434157,27.66017231,172.75,172.68,8.9454]
[1641202434358,29.27467191,172.75,172.68,8.9454]
[1641202435158,28.77467191,172.75,172.68,8.9454]
[1641202435757,27.16017231,172.75,172.68,8.9454]
[1641202441777,27.16017231,172.75,172.68,8.6854]
[1641202441976,27.42017231,172.75,172.68,8.6854]
[1641202442479,1.6144996,172.73,172.68,8.6854]
[1641202442680,1.6144996,172.73,172.66,8.6865]
[1641202443278,26.54352827,172.71,172.66,8.6865]
[1641202444378,26.54352827,172.71,172.66,8.9465]
[1641202453113,26.54352827,172.71,172.66,8.6865]
[1641202453512,26.54352827,172.71,172.64,8.6877]
[1641202454112,35.23142827,172.71,172.6,28.9597]
[1641202454313,75.5969,172.7,172.6,28.9597]
[1641202454914,75.5969,172.7,172.63,8.6885]
[1641202455118,77.2113996,172.7,172.63,8.6885]
[1641202455515,77.2113996,172.7,172.63,8.9485]
[1641202456920,75.5969,172.7,172.63,8.9485]
[1641202459124,77.2113996,172.7,172.63,8.9485]
[1641202460425,75.5969,172.7,172.63,8.9485]
[1641202472660,73.7118468,172.7,172.63,8.9485]
[1641202473561,74.9444468,172.7,172.63,8.9485]
[1641202476065,76.5589464,172.7,172.63,8.9485]
[1641202478866,74.9444468,172.7,172.63,8.9485]
[1641202479265,28.15802787,172.71,172.63,14.8245]
[1641202480066,28.15802787,172.71,172.64,8.1]
[1641202480268,28.15802787,172.71,172.67,8.6853]
[1641202480469,1.6144996,172.73,172.67,11.56076198]
[1641202480667,2.8935996,172.74,172.67,11.82076198]
[1641202481473,29.5615256,172.74,172.67,11.82076198]
[1641202481868,28.2824256,172.74,172.67,11.82076198]
[1641202482869,26.667926,172.74,172.67,11.82076198]
[1641202486973,26.667926,172.74,172.67,11.56076198]
[1641202488174,26.667926,172.74,172.67,11.82076198]
[1641202488675,26.667926,172.74,172.67,8.6853]
[1641202489077,35.354126,172.74,172.67,8.6853]
[1641202489278,36.632526,172.74,172.67,8.6853]
[1641202489477,38.5070256,172.74,172.67,8.6853]
[1641202490076,38.5070256,172.74,172.67,8.9453]
[1641202490077,1.6144996,172.73,172.67,8.9453]
[1641202490676,10.3012996,172.73,172.65,8.6873]
[1641202490879,18.6612996,172.73,172.65,8.6873]
[1641202491478,1.6144996,172.71,172.65,8.6873]
[1641202491684,27.47661259,172.7,172.65,8.6873]
[1641202492082,27.47661259,172.7,172.65,8.9473]
[1641202494183,29.09111219,172.7,172.65,8.9473]
[1641202494684,37.77931219,172.7,172.64,8.6882]
[1641202495687,37.77931219,172.7,172.64,10.87281009]
[1641202495886,1.6144996,172.7,172.64,10.87281009]
[1641202496088,1.6144996,172.7,172.64,11.13281009]
[1641202496688,1.6144996,172.71,172.64,11.13281009]
[1641202497289,2.8810996,172.72,172.64,11.13281009]
[1641202497487,11.5682996,172.72,172.64,11.13281009]
[1641202498195,1.6144996,172.71,172.64,11.13281009]
[1641202500098,1.2666,172.72,172.64,11.13281009]
[1641202503504,1.6144996,172.75,172.64,11.13281009]
[1641202503706,1.6144996,172.75,172.64,19.23281009]
[1641202503707,1.3014,172.74,172.64,19.23281009]
[1641202504307,1.3014,172.74,172.64,12.35871009]
[1641202505307,1.6144996,172.75,172.65,8.1]
[1641202505509,1.6144996,172.75,172.71,2.63125396]
[1641202505912,1.6144996,172.78,172.71,2.89125396]
[1641202506710,1.6144996,172.78,172.74,8.6832]
[1641202506911,75.9409996,172.79,172.74,8.6832]